[Event "44th Chess Olympiad Open 2022"]
[Site "Chennai"]
[Date "2022.08.08"]
[Round "10.16"]
[White "Kjartansson, Gudmundur"]
[Black "Banikas, Hristos"]
[Result "1/2-1/2"]
[ECO "A29"]
[WhiteElo "2448"]
[BlackElo "2598"]
[Annotator "TA"]
[PlyCount "175"]
[EventDate "2022.07.29"]
[EventType "team-tourn"]
[EventCountry "IND"]
[SourceTitle "playchess.com"]
[Source "ChessBase"]
[SourceQuality "1"]
[WhiteTeam "Iceland"]
[BlackTeam "Greece"]
[WhiteTeamCountry "ISL"]
[BlackTeamCountry "GRE"]
[TimeControl "40/5400+30:1800+30"]

{[%evp 16,175,6,18,14,13,15,14,22,0,0,-11,8,0,19,13,15,7,7,14,9,0,0,0,0,0,17,13,23,18,22,20,6,4,53,0,6,5,14,14,21,11,4,8,4,8,15,14,29,16,15,8,101,93,95,96,98,95,89,69,92,92,98,96,133,96,96,96,96,94,94,89,130,98,137,103,115,94,85,21,28,28,39,18,18,25,62,7,8,8,8,8,8,8,8,8,8,8,8,8,8,8,8,8,14,14,14,0,14,15,15,0,0,0,0,0,0,0,0,0,0,0,0,0,0,0,0,0,1,0,0,0,0,0,0,0,0,0,0,0,0,0,0,0,0,0,0,1,1,1,1,0,0,0,90,0,0,0,0,0,154,0]} 1. c4 {[%emt 0:00:05]} e5 {[%emt 0:00:25]} 2. g3 {[%emt 0:00:11]} Nf6 {[%emt 0:00:08]} 3. Bg2 {[%emt 0:00:20]} d5 {[%emt 0:00:06]} 4. cxd5 {[%emt 0:00:04]} Nxd5 {[%emt 0:00:05]} 5. Nc3 {[%emt 0:02:50]} Nb6 {[%emt 0:00:05]} 6. Nf3 {[%emt 0:00:14]} Nc6 {[%emt 0:00:08]} 7. O-O {[%emt 0:00:09]} Be7 {[%emt 0:00:04]} 8. Rb1 {[%emt 0:00:33]} a5 {[%emt 0:06:59]} 9. d3 {[%emt 0:01:08]} O-O {[%emt 0:00:04] A29: English Opening: Four Knights Variation with 4 g3.} 10. Be3 {[%emt 0:01:39]} Re8 {[%emt 0:00:39]} 11. Rc1 {[%emt 0:03:57]} Be6 {[%emt 0:13:00] [#] The position is equal.} 12. Na4 $146 {[%emt 0:07:47]} ({Predecessor:} 12. d4 exd4 13. Nxd4 Nxd4 14. Qxd4 Qxd4 15. Bxd4 c5 16. Be3 Nc4 17. Bf4 g5 18. b3 gxf4 19. bxc4 fxg3 20. hxg3 Bxc4 21. Bxb7 {½-½ (50) Romanov,E (2573)-Agmanov,Z (2420) Tashkent 2022}) 12... Nd5 {[%emt 0:12:11]} 13. Bc5 {[%emt 0:02:39]} Bd6 {[%emt 0:00:12]} 14. Re1 {[%emt 0:08:26]} Ra6 {[%emt 0:05:13]} 15. e4 {[%emt 0:08:17] [#] Black must now prevent Bxd6.} Nb6 {[%emt 0:00:43]} 16. Bxd6 {[%emt 0:04:30]} cxd6 {[%emt 0:00:39]} 17. Nc3 {[%emt 0:02:30]} Bg4 {[%emt 0:01:27]} 18. h3 {[%emt 0:05:18]} Bxf3 {[%emt 0:00:05]} 19. Bxf3 {[%emt 0:00:29][%cal Bg2f3,Bf3g4,Bg4h3][%mdl 32]} Nd7 {[%emt 0:05:19]} (19... Nd4 {looks sharper.} 20. Kg2 Nd7 21. Ne2 Nxf3 22. Kxf3 Rb6) 20. Nb5 {[%emt 0:07:39]} Nf8 {[%emt 0:07:37]} 21. Bg4 {[%emt 0:04:56]} g6 {[%emt 0:00:30]} 22. h4 $1 {[%emt 0:00:21]} h5 {[%emt 0:00:30]} 23. Bh3 {[%emt 0:00:07]} Rb6 {[%emt 0:02:21]} 24. a4 {[%emt 0:00:58]} Nh7 {[%emt 0:00:06]} (24... Ne6 $11) 25. Rc4 {[%emt 0:13:49]} (25. Qd2 $14 {was preferrable.}) 25... Nf6 $11 {[%emt 0:03:12]} 26. Bg2 {[%emt 0:03:52]} Qe7 {[%emt 0:04:36]} 27. Qd2 {[%emt 0:01:43]} Kg7 {[%emt 0:00:02]} 28. Rec1 {[%emt 0:02:55]} Rd8 {[%emt 0:01:51]} 29. Qe3 {[%emt 0:01:32]} Ra6 {[%emt 0:00:04]} 30. d4 {[%emt 0:00:58][%cal Bd3d4,Bd4d5][%mdl 32]} d5 {[%emt 0:05:49]} 31. exd5 {[%emt 0:01:32]} Nxd5 {[%emt 0:00:37]} 32. Bxd5 {[%emt 0:00:25]} Rxd5 {[%emt 0:00:03]} 33. Qe4 {[%emt 0:00:16]} Rd7 {[%emt 0:02:00]} (33... Qd7 $11) 34. d5 $16 {[%emt 0:02:33] White is more active.} Nd4 {[%emt 0:02:38]} 35. Nxd4 {[%emt 0:09:49]} exd4 {[%emt 0:00:05]} 36. Qxd4+ {[%emt 0:00:28]} Qf6 {[%emt 0:00:36]} 37. Qxf6+ {[%emt 0:01:41]} Kxf6 {[%emt 0:00:06][%mdl 4096] Endgame KRR-KRR} 38. Rc5 {[%emt 0:00:44]} Rad6 {[%emt 0:00:27]} 39. Rxa5 {[%emt 0:00:33]} Rxd5 {[%emt 0:00:04]} 40. Rxd5 {[%emt 0:00:32]} Rxd5 {[%emt 0:00:03] KR-KR} 41. Rc7 {[%emt 0:14:26]} Rd4 {[%emt 0:01:29]} 42. Rxb7 {[%emt 0:01:25]} Rxa4 {[%emt 0:00:04]} 43. Kg2 {[%emt 0:00:40]} Rc4 {[%emt 0:00:35]} 44. Kf3 {[%emt 0:02:34]} Rc2 {[%emt 0:00:02]} 45. Ke3 {[%emt 0:00:40]} Ke6 {[%emt 0:02:55]} 46. Rb4 {[%emt 0:00:39]} f6 {[%emt 0:03:45]} 47. Re4+ {[%emt 0:05:56]} (47. Rb5 $16) 47... Kf7 $11 {[%emt 0:15:08]} 48. b4 {[%emt 0:01:35]} g5 {[%emt 0:00:06]} 49. Rd4 {[%emt 0:01:02] Hoping for Rd2.} Rb2 {[%emt 0:00:28]} 50. Rc4 {[%emt 0:00:22]} Ke6 {[%emt 0:02:53]} 51. hxg5 {[%emt 0:06:12]} ({White should try} 51. Rc6+ $14 Kf7 52. Rc4) 51... fxg5 {[%emt 0:00:08]} 52. Kf3 {[%emt 0:00:34]} Rb3+ {[%emt 0:09:31]} 53. Kg2 {[%emt 0:01:42]} Kf5 {[%emt 0:03:55]} 54. Rc5+ {[%emt 0:00:21]} Kg6 {[%emt 0:00:04]} 55. b5 {[%emt 0:00:14]} g4 {[%emt 0:01:09]} 56. Kf1 {[%emt 0:00:17] aiming for Rc6+.} Rb2 {[%emt 0:03:07]} 57. Ke1 {[%emt 0:00:08]} Kh6 {[%emt 0:00:06]} 58. Rf5 {[%emt 0:00:09] Kd1 is the strong threat.} Kg6 {[%emt 0:00:15]} 59. Re5 {[%emt 0:00:01]} Kh6 {[%emt 0:00:12]} 60. Rd5 {[%emt 0:00:02]} Kg6 {[%emt 0:00:08]} 61. Rc5 {[%emt 0:00:01]} Kh6 {[%emt 0:00:06]} 62. Rc6+ {[%emt 0:01:34]} Kg5 {[%emt 0:01:32]} 63. Rb6 {[%emt 0:00:17]} Kf5 {[%emt 0:09:57]} 64. Rb8 {[%emt 0:00:31]} Kg6 {[%emt 0:00:23]} 65. b6 {[%emt 0:00:18]} Kg7 {[%emt 0:00:04]} 66. b7 {[%emt 0:00:28]} Rb1+ {[%emt 0:00:57]} 67. Kd2 $1 {[%emt 0:00:05]} Rb3 {[%emt 0:00:20]} 68. Kc2 {[%emt 0:00:05]} Rb6 {[%emt 0:00:07]} 69. Kd3 {[%emt 0:00:05]} Rb2 {[%emt 0:00:15]} 70. Kd4 {[%emt 0:00:17]} Kh7 {[%emt 0:00:29]} 71. Ke4 {[%emt 0:01:11]} Kg7 {[%emt 0:00:06]} 72. Kf5 {[%emt 0:02:31] Strongly threatening Kg5.} Rxf2+ {[%emt 0:00:08]} 73. Kg5 {[%emt 0:00:07]} Rb2 {[%emt 0:00:06]} 74. Kxh5 {[%emt 0:00:09]} Rb1 {[%emt 0:01:03]} 75. Kxg4 {[%emt 0:00:14]} Rb2 {[%emt 0:00:04]} 76. Kf5 {[%emt 0:00:36]} Rb1 {[%emt 0:00:07]} 77. g4 {[%emt 0:00:03]} Rb2 {[%emt 0:00:08]} 78. Kf4 {[%emt 0:00:15]} Rb1 {[%emt 0:00:06]} 79. Ke5 {[%emt 0:00:16]} Rb2 {[%emt 0:00:08]} 80. Kd6 {[%emt 0:00:11]} Rd2+ {[%emt 0:00:23]} 81. Kc5 {[%emt 0:00:04]} Rc2+ {[%emt 0:00:05]} 82. Kd4 {[%emt 0:00:06][%cal Ob8g8] Rg8+! would kill now.} Rb2 {[%emt 0:00:06]} 83. g5 {[%emt 0:00:01]} Rb1 {[%emt 0:00:06]} 84. Kc3 {[%emt 0:00:14]} (84. g6 $5) 84... Rb6 {[%emt 0:00:07] [#]} (84... Rb5 $11 85. Kc2 Rb4) 85. g6 {[%emt 0:00:04]} (85. Kc4 $1 $16 Rb2 86. Kd5) 85... Rb1 {[%emt 0:00:06]} 86. Kd4 {[%emt 0:00:22]} Rb2 {[%emt 0:00:12]} 87. Kc3 $2 {[%emt 0:00:02]} (87. Ke4 $11) 87... Rb1 $16 {[%emt 0:00:05]} 88. Kd4 $2 {[%emt 0:00:03] Weighted Error Value: White=0.09 (flawless) /Black=0.09 (flawless)} (88. Kc4 $16) 1/2-1/2

[Event "44th Chess Olympiad Open 2022"]
[Site "Chennai"]
[Date "2022.08.08"]
[Round "10.17"]
[White "Supi, Luis Paulo"]
[Black "Hansen, Eric"]
[Result "1/2-1/2"]
[ECO "C42"]
[WhiteElo "2603"]
[BlackElo "2606"]
[Annotator "TA"]
[PlyCount "60"]
[EventDate "2022.07.29"]
[EventType "team-tourn"]
[EventCountry "IND"]
[SourceTitle "playchess.com"]
[Source "ChessBase"]
[SourceQuality "1"]
[WhiteTeam "Brazil"]
[BlackTeam "Canada"]
[WhiteTeamCountry "BRA"]
[BlackTeamCountry "CAN"]
[TimeControl "40/5400+30:1800+30"]

{[%evp 15,60,37,18,15,19,16,19,11,17,11,17,8,13,7,10,4,6,0,19,0,13,4,4,0,1,0,0,0,0,0,0,0,0,0,0,0,0,0,0,0,0,0,0,0,0,0,0]} 1. e4 {[%emt 0:00:01]} e5 {[%emt 0:01:00]} 2. Nf3 {[%emt 0:00:11]} Nf6 {[%emt 0:00:59][%cal Bg8f6,Bf6e4,Be4d6][%mdl 32]} 3. Nxe5 {[%emt 0:00:34]} d6 {[%emt 0:00:17]} 4. Nf3 {[%emt 0:00:03]} Nxe4 {[%emt 0:00:17]} 5. d4 {[%emt 0:00:38]} d5 {[%emt 0:01:51]} 6. Bd3 {[%emt 0:00:04]} Bf5 {[%emt 0:04:21]} 7. O-O {[%emt 0:00:13]} Be7 {[%emt 0:00:33]} 8. Re1 {[%emt 0:00:34]} O-O {[%emt 0:01:24]} 9. Nbd2 {[%emt 0:00:13][%cal Rd2e4] The position is equal. now supersedes 9.c4. C42: Petroff Defence: 3 Nxe5 and unusual White 3rd moves.} Nd6 $1 {[%emt 0:01:16]} 10. Nf1 {[%emt 0:00:21]} c6 {[%emt 0:02:13]} 11. Bf4 {[%emt 0:01:43] [#] Threatens to win with Bxd6.} Bxd3 {[%emt 0:01:55]} 12. Qxd3 {[%emt 0:00:08]} Na6 {[%emt 0:00:14][%cal Bb8a6,Ba6c7,Bc7e6,Be6g5,Bg5f3][%mdl 32]} 13. Re2 {[%emt 0:19:34]} Nc7 {[%emt 0:07:18] [#]} 14. c3 $146 {[%emt 0:10:05]} ({Predecessor:} 14. Rae1 Ne6 15. Bxd6 Bxd6 16. g3 Qd7 17. Ne3 Rae8 18. Nf5 Bc7 19. c3 g6 20. N5h4 {½-½ (27) Anand,V (2751)-Caruana,F (2786) Warsaw 2022}) 14... Ne6 {[%emt 0:06:39]} 15. Be5 {[%emt 0:02:35]} Re8 {[%emt 0:01:20]} 16. Rae1 {[%emt 0:02:40]} Bf8 {[%emt 0:02:53]} 17. N1d2 {[%emt 0:03:40]} Ng5 {[%emt 0:08:02]} 18. Bxd6 {[%emt 0:18:22]} Rxe2 {[%emt 0:03:10]} 19. Rxe2 {[%emt 0:00:19]} Bxd6 {[%emt 0:03:19]} 20. g3 {[%emt 0:00:47]} (20. Nxg5 {keeps more tension.} Qxg5 21. Nf3 Qg4 22. b3) 20... Nxf3+ {[%emt 0:03:51]} 21. Nxf3 {[%emt 0:00:15]} Qd7 {[%emt 0:00:29]} 22. Qe3 {[%emt 0:10:55]} f6 {[%emt 0:10:35]} 23. Kg2 {[%emt 0:00:47]} Kf8 {[%emt 0:06:29]} 24. Qd3 {[%emt 0:03:34]} g6 {[%emt 0:01:33]} 25. Qe3 {[%emt 0:04:28]} Re8 {[%emt 0:00:13]} 26. Qxe8+ {[%emt 0:00:30]} Qxe8 {[%emt 0:00:07]} 27. Rxe8+ {[%emt 0:00:04]} Kxe8 {[%emt 0:00:07]} 28. Ne1 {[%emt 0:01:23]} Ke7 {[%emt 0:00:13]} 29. Kf3 {[%emt 0:00:07]} Ke6 {[%emt 0:00:19]} 30. Nc2 {[%emt 0:00:04]} Kf5 {[%emt 0:00:39] A balanced but interesting game.  Weighted Error Value: White=0.03 (flawless) /Black=0.02 (flawless)} 1/2-1/2

[Event "44th Chess Olympiad Open 2022"]
[Site "Chennai"]
[Date "2022.08.08"]
[Round "10.17"]
[White "Mekhitarian, Krikor Sevag"]
[Black "Noritsyn, Nikolay"]
[Result "1-0"]
[ECO "A85"]
[WhiteElo "2542"]
[BlackElo "2482"]
[Annotator "TA"]
[PlyCount "87"]
[EventDate "2022.07.29"]
[EventType "team-tourn"]
[EventCountry "IND"]
[SourceTitle "playchess.com"]
[Source "ChessBase"]
[SourceQuality "1"]
[WhiteTeam "Brazil"]
[BlackTeam "Canada"]
[WhiteTeamCountry "BRA"]
[BlackTeamCountry "CAN"]
[TimeControl "40/5400+30:1800+30"]

{[%evp 9,87,20,30,35,49,35,41,44,35,26,29,26,28,29,37,37,72,75,74,58,75,68,56,49,63,40,72,32,55,18,41,0,0,0,0,0,0,0,3,6,173,190,177,184,183,131,280,273,281,285,247,246,321,317,389,389,389,388,373,358,387,387,751,574,745,685,821,572,1083,1053,909,545,3913,1960,2333,1484,29989,29990,29990,29991]} 1. d4 {[%emt 0:00:06]} e6 {[%emt 0:00:12]} 2. c4 {[%emt 0:00:14]} f5 {[%emt 0:00:11]} 3. Nc3 {[%emt 0:01:15]} Nf6 {[%emt 0:00:12]} 4. a3 {[%emt 0:00:57]} Be7 {[%emt 0:00:47]} 5. e3 {[%emt 0:03:55]} O-O {[%emt 0:05:40]} 6. Bd3 {[%emt 0:00:03] [#] A85: Dutch Defence: 2 c4 Nf6 3 Nc3.} c5 $146 {[%emt 0:07:46]} ({Predecessor:} 6... b6 7. Nge2 Bb7 8. O-O c5 9. d5 Bd6 10. h3 Qe7 11. Qc2 Kh8 12. dxe6 dxe6 {0-1 (24) Kopylov,A (2444)-Kuzubov,Y (2623) St Petersburg 2011}) 7. dxc5 {[%emt 0:19:19]} Bxc5 {[%emt 0:00:08]} 8. b4 {[%emt 0:00:25] White is slightly better.} Be7 {[%emt 0:00:22]} 9. Bb2 {[%emt 0:00:17]} a5 {[%emt 0:02:07]} 10. b5 {[%emt 0:00:08]} d6 {[%emt 0:07:19]} 11. Nf3 {[%emt 0:07:16][%cal Oc4c5]} Nbd7 {[%emt 0:05:18]} 12. Na4 {[%emt 0:09:43]} Ne4 {[%emt 0:14:16]} 13. Bxe4 {[%emt 0:04:18]} fxe4 {[%emt 0:00:07]} 14. Nd2 {[%emt 0:00:02] White is more active.} ({Reject} 14. Qd4 Nf6 15. Nd2 e5 $15) 14... Nf6 {[%emt 0:00:45]} 15. O-O {[%emt 0:03:16]} Bd7 {[%emt 0:15:38]} 16. Rc1 {[%emt 0:07:29]} d5 {[%emt 0:06:04]} 17. Qb3 {[%emt 0:02:46]} Be8 {[%emt 0:13:12]} 18. c5 {[%emt 0:24:53]} Rc8 {[%emt 0:02:36]} 19. Bd4 {[%emt 0:00:11]} Bh5 {[%emt 0:01:03]} 20. Nb6 {[%emt 0:02:52]} Rc7 {[%emt 0:00:29]} 21. a4 {[%emt 0:03:50]} Bf7 {[%emt 0:04:59][%cal Oe6e5]} 22. Qb2 {[%emt 0:02:32] Black must now prevent Nb3.} e5 $1 {[%emt 0:02:57]} 23. Bc3 {[%emt 0:02:43]} Bxc5 {[%emt 0:01:59]} 24. Bxa5 {[%emt 0:00:03][%cal Ob6a8]} Qd6 $2 {[%emt 0:00:42] [#]} (24... Qe7 $11 {and Black stays safe.}) 25. Nxd5 $1 $18 {[%emt 0:00:11][%mdl 512]} Bxd5 {[%emt 0:00:25]} 26. Bxc7 {[%emt 0:00:18]} Qxc7 {[%emt 0:00:06]} 27. Nb3 {[%emt 0:00:13]} b6 {[%emt 0:01:53] This move loses the game for Black.} (27... Bxb3 $16 28. Qxb3+ Kh8) 28. Nxc5 {[%emt 0:01:22]} bxc5 {[%emt 0:00:02]} 29. b6 {[%emt 0:01:00]} Qc6 {[%emt 0:00:53]} 30. a5 {[%emt 0:00:08][%mdl 1024] aiming for Rfd1. White has strong compensation.} Ra8 {[%emt 0:01:28]} 31. Ra1 {[%emt 0:00:23]} Nd7 {[%emt 0:02:56]} 32. Rfd1 {[%emt 0:00:29]} Rb8 {[%emt 0:01:31]} 33. Qd2 {[%emt 0:01:09]} Nf6 {[%emt 0:00:30]} 34. Qc3 {[%emt 0:00:21]} Nd7 {[%emt 0:01:49]} 35. Rd2 {[%emt 0:00:01] Threatens to win with Rad1.} Ra8 $2 {[%emt 0:00:43]} (35... c4 36. Rad1 Nf6 37. Qxe5 Re8) 36. h3 {[%emt 0:00:53] Hoping for Rad1.} Kf7 {[%emt 0:00:19]} 37. Rad1 {[%emt 0:00:23]} Nf6 {[%emt 0:00:09]} 38. Rb1 {[%emt 0:02:02]} Nd7 {[%emt 0:01:00]} 39. b7 {[%emt 0:00:35]} Rb8 {[%emt 0:00:24]} 40. a6 {[%emt 0:01:30]} Be6 {[%emt 0:00:59]} 41. Qa5 {[%emt 0:04:06]} c4 {[%emt 0:04:06]} 42. a7 {[%emt 0:02:58] Rxd7+ would kill now.} c3 {[%emt 0:00:28]} 43. Rxd7+ {[%emt 0:00:15][%mdl 64] [#] Promotion} Qxd7 {[%emt 0:00:09]} 44. axb8=Q {[%emt 0:00:22] Weighted Error Value: White=0.28 (precise) /Black=0.52} 1-0

[Event "44th Chess Olympiad Open 2022"]
[Site "Chennai"]
[Date "2022.08.08"]
[Round "10.17"]
[White "Panjwani, Raja"]
[Black "Fier, Alexandr"]
[Result "1/2-1/2"]
[ECO "A84"]
[WhiteElo "2450"]
[BlackElo "2567"]
[Annotator "TA"]
[PlyCount "82"]
[EventDate "2022.07.29"]
[EventType "team-tourn"]
[EventCountry "IND"]
[SourceTitle "playchess.com"]
[Source "ChessBase"]
[SourceQuality "1"]
[WhiteTeam "Canada"]
[BlackTeam "Brazil"]
[WhiteTeamCountry "CAN"]
[BlackTeamCountry "BRA"]
[TimeControl "40/5400+30:1800+30"]

{[%evp 19,82,17,20,22,26,13,25,16,24,24,23,15,28,27,30,28,27,29,25,22,25,28,41,39,49,53,36,48,33,5,34,0,0,0,0,0,0,0,0,0,0,0,0,0,0,0,0,-4,-2,-3,-3,-8,-8,-8,-8,-8,0,-8,0,0,0,-14,0,0,0]} 1. d4 {[%emt 0:00:03]} d5 {[%emt 0:00:05]} 2. c4 {[%emt 0:00:11]} e6 {[%emt 0:00:03]} 3. Nf3 {[%emt 0:00:10]} c6 {[%emt 0:00:04]} 4. e3 {[%emt 0:00:08]} f5 {[%emt 0:00:04]} 5. Bd3 {[%emt 0:00:21]} Nf6 {[%emt 0:00:17]} 6. O-O {[%emt 0:00:20]} Bd6 {[%emt 0:00:04]} 7. b3 {[%emt 0:00:10]} Qe7 {[%emt 0:00:04]} 8. a4 {[%emt 0:00:09]} a5 {[%emt 0:00:17]} 9. Ba3 {[%emt 0:00:16]} Bxa3 {[%emt 0:00:05]} 10. Nxa3 {[%emt 0:00:06][%cal Bb1a3,Ba3c2,Bc2e1,Be1d3][%mdl 32]} O-O {[%emt 0:00:04]} 11. Nc2 {[%emt 0:04:14] A84: Dutch Defence: 2 c4 Miscellaneous.} b6 {[%emt 0:02:01]} 12. cxd5 {[%emt 0:00:47]} exd5 {[%emt 0:06:58]} 13. Ne5 {[%emt 0:14:50] White has an edge.} c5 {[%emt 0:01:59]} 14. Ne1 {[%emt 0:21:36]} Na6 {[%emt 0:02:27]} 15. Rc1 {[%emt 0:07:18]} Nb4 {[%emt 0:01:12]} 16. Bb5 {[%emt 0:01:03] [#]} Be6 $146 {[%emt 0:03:48]} ({Predecessor:} 16... Ne4 17. N1d3 Bb7 18. Nd7 Na2 19. Nxf8 Nec3 20. Qh5 Nxc1 21. Rxc1 Nxb5 22. Qxh7+ Kxf8 23. axb5 c4 24. bxc4 dxc4 25. Ne5 Qg5 26. g3 Rc8 27. h4 Qh6 28. Qxf5+ {1-0 (28) Rabatin,J (2300)-Kozusek,D (2367) Czech Republic 2019}) 17. N1d3 {[%emt 0:02:35]} Rac8 {[%emt 0:00:32]} 18. f3 {[%emt 0:04:28]} Rc7 {[%emt 0:09:15]} 19. Qd2 {[%emt 0:12:42]} Rfc8 {[%emt 0:01:11]} 20. Rc3 {[%emt 0:05:38]} cxd4 {[%emt 0:12:34]} 21. Rxc7 {[%emt 0:00:09]} Qxc7 {[%emt 0:00:01]} 22. exd4 {[%emt 0:10:20]} Qc3 {[%emt 0:00:06]} 23. Qxc3 {[%emt 0:00:16]} Rxc3 {[%emt 0:00:04]} 24. Rc1 {[%emt 0:03:25]} Na2 {[%emt 0:04:37]} 25. Rxc3 {[%emt 0:01:13]} Nxc3 {[%emt 0:00:04] The position is equal.} 26. Nf4 {[%emt 0:01:51] Against Ne2+} Bc8 {[%emt 0:02:26]} 27. h4 {[%emt 0:02:25]} Nxb5 {[%emt 0:02:20]} 28. axb5 $11 {[%emt 0:00:01][%cal Og2g4][%mdl 4096] Endgame KBN-KNN} Kf8 {[%emt 0:00:07]} 29. Kf2 {[%emt 0:01:12]} Ke7 {[%emt 0:00:08]} 30. Ne2 {[%emt 0:02:39]} Kd6 {[%emt 0:02:01]} 31. Ke3 {[%emt 0:00:42]} h6 {[%emt 0:01:00]} 32. Nc3 {[%emt 0:01:01]} Be6 {[%emt 0:00:13]} 33. Nd3 {[%emt 0:01:33]} g5 {[%emt 0:04:39]} 34. hxg5 {[%emt 0:00:16]} hxg5 {[%emt 0:00:02]} 35. b4 {[%emt 0:00:26]} f4+ {[%emt 0:00:04]} 36. Kd2 {[%emt 0:00:24]} axb4 {[%emt 0:03:06]} 37. Nxb4 {[%emt 0:00:07]} Bd7 {[%emt 0:00:01]} 38. Nd3 {[%emt 0:00:48]} Nh5 {[%emt 0:00:31]} 39. Nb4 {[%emt 0:01:16]} Nf6 {[%emt 0:00:51]} 40. Nd3 {[%emt 0:00:17]} Be8 {[%emt 0:00:03]} 41. Nb4 {[%emt 0:03:50]} Bd7 {[%emt 0:04:26] Weighted Error Value: White=0.03 (flawless) /Black=0.04 (flawless)} 1/2-1/2

[Event "44th Chess Olympiad Open 2022"]
[Site "Chennai"]
[Date "2022.08.08"]
[Round "10.17"]
[White "Preotu, Razvan"]
[Black "Diamant, Andre"]
[Result "1-0"]
[ECO "C43"]
[WhiteElo "2445"]
[BlackElo "2538"]
[Annotator "TA"]
[PlyCount "95"]
[EventDate "2022.07.29"]
[EventType "team-tourn"]
[EventCountry "IND"]
[SourceTitle "playchess.com"]
[Source "ChessBase"]
[SourceQuality "1"]
[WhiteTeam "Canada"]
[BlackTeam "Brazil"]
[WhiteTeamCountry "CAN"]
[BlackTeamCountry "BRA"]
[TimeControl "40/5400+30:1800+30"]

{[%evp 17,95,9,15,12,13,0,8,6,21,22,35,23,37,18,33,22,100,86,176,130,135,137,136,126,126,126,133,111,239,205,197,163,212,231,226,216,444,443,443,443,426,423,4702,2563,4372,2510,2018,1971,1706,1486,1407,1089,12826,11274,12816,6968,1979,1261,12841,12841,12841,12842,12842,12843,12843,12843,12843,12843,12845,12844,12845,12844,12845,12845,12845,12846,12846,12847,29995,29996]} 1. e4 {[%emt 0:00:30]} e5 {[%emt 0:00:04]} 2. Nf3 {[%emt 0:00:23]} Nf6 {[%emt 0:01:03]} 3. d4 {[%emt 0:00:59]} Nxe4 {[%emt 0:00:00]} 4. Bd3 {[%emt 0:00:23]} d5 {[%emt 0:00:00]} 5. Nxe5 {[%emt 0:00:13]} Nd7 {[%emt 0:00:20]} 6. Nxd7 {[%emt 0:02:21]} Bxd7 {[%emt 0:00:19]} 7. O-O {[%emt 0:00:33]} Bd6 {[%emt 0:01:55]} 8. Nc3 $1 {[%emt 0:00:22][%mdl 4] outshines the older 8.c4.} Nxc3 {[%emt 0:00:38]} 9. bxc3 {[%emt 0:00:09]} O-O {[%emt 0:00:39]} 10. Qh5 {[%emt 0:00:12][%csl Gd3,LRd5,LRh7][%cal Rh5h7] Inhibits Qh4. C43: Petroff Defence: 3 d4.} f5 {[%emt 0:01:32]} 11. Bg5 {[%emt 0:00:47]} Qe8 {[%emt 0:01:37]} 12. Qf3 {[%emt 0:00:18] The position is equal.} c6 {[%emt 0:14:24]} 13. Rfe1 {[%emt 0:10:56] [#]} Qg6 $146 {[%emt 0:00:51]} ({Predecessor:} 13... Qf7 14. Bf4 Bxf4 15. Qxf4 Rac8 16. Re5 c5 17. Rae1 c4 18. Bf1 Rce8 19. g3 Rxe5 20. Rxe5 {1-0 (71) Estrada Nieto,J (2261)-Khamdamova,A (1771) Chess.com INT 2022}) 14. Bf4 {[%emt 0:02:32]} Rae8 {[%emt 0:01:25][%cal Oe8e4]} 15. a4 {[%emt 0:00:23]} b6 {[%emt 0:07:44][%cal Oe8e4]} 16. h4 {[%emt 0:06:19]} Bxf4 {[%emt 0:15:49]} (16... h6 $11) 17. Qxf4 $16 {[%emt 0:00:08]} Qg4 {[%emt 0:00:23]} (17... Rc8 $16) 18. Qd6 {[%emt 0:14:19]} (18. Qc7 $18 Rf7 19. Rxe8+ (19. Qxa7 Ref8 $16) 19... Bxe8 20. Qd8) 18... f4 {[%emt 0:47:12]} 19. Rxe8 {[%emt 0:01:42]} Rxe8 {[%emt 0:00:49]} 20. f3 {[%emt 0:00:29]} Qe6 {[%emt 0:00:17]} 21. Qxf4 {[%emt 0:00:21]} a5 {[%emt 0:02:28]} 22. Rb1 {[%emt 0:23:56] White is more active.} c5 {[%emt 0:00:37] Black cannot hold the game after this.} (22... b5 $16) 23. c4 {[%emt 0:19:23]} dxc4 {[%emt 0:00:36]} 24. d5 $1 $36 {[%emt 0:00:09][%mdl 2048] White has strong initiative.} Qe3+ {[%emt 0:00:45]} (24... Qh6 $142 25. Qxh6 (25. Qxc4 Qd6 $16) 25... gxh6 26. Bxc4 Bxa4) 25. Qxe3 $18 {[%emt 0:00:06]} Rxe3 {[%emt 0:00:04] [#]} 26. Kf2 $1 {[%emt 0:06:24]} ({Don't do} 26. Bxc4 $6 Rc3 27. Bb5 Bxb5 28. Rxb5 Rxc2 $16) 26... cxd3 $2 {[%emt 0:01:02]} (26... Re8) 27. Kxe3 {[%emt 0:00:10]} dxc2 {[%emt 0:00:06][%mdl 4096] Endgame [#] KR-KB} 28. Re1 {[%emt 0:00:05]} Bxa4 {[%emt 0:00:34]} 29. Kd2 {[%emt 0:00:37]} b5 {[%emt 0:00:35]} (29... Kf7 $142 30. Re6 b5) 30. d6 {[%emt 0:01:15] White threatens d7 and mate.} b4 {[%emt 0:00:04]} 31. Ra1 {[%emt 0:01:03]} Bd7 {[%emt 0:01:10]} 32. Rxa5 {[%emt 0:00:11] aiming for Ra7.} Kf7 {[%emt 0:00:40]} 33. Rxc5 {[%emt 0:00:21]} b3 {[%emt 0:00:07]} 34. Re5 {[%emt 0:00:16] Strongly threatening Re7+.} Be6 {[%emt 0:00:34]} 35. g4 {[%emt 0:02:11]} Kf6 {[%emt 0:00:25]} 36. Re1 {[%emt 0:00:17]} h6 {[%emt 0:00:21]} 37. g5+ {[%emt 0:00:38]} hxg5 {[%emt 0:00:44]} 38. hxg5+ {[%emt 0:00:05]} Kf7 {[%emt 0:00:21]} 39. Kc1 {[%emt 0:00:19]} Bf5 {[%emt 0:00:45]} 40. Re7+ {[%emt 0:00:23]} Kf8 {[%emt 0:00:23]} 41. Re5 {[%emt 0:30:18]} Bd7 {[%emt 0:30:28]} 42. g6 {[%emt 0:00:14]} Bc6 {[%emt 0:00:00]} 43. f4 {[%emt 0:00:00]} Bd7 {[%emt 0:00:00]} 44. Ra5 {[%emt 0:00:00]} Bc6 {[%emt 0:00:00] Against Ra8+} 45. Rc5 {[%emt 0:00:00]} Bd7 {[%emt 0:00:00]} 46. Rh5 {[%emt 0:00:00][%cal Rh5h8]} Kg8 {[%emt 0:00:00] Inhibits Rh8+.} 47. Ra5 {[%emt 0:00:00] Ra8+ would kill now.} Be8 {[%emt 0:00:00]} 48. Ra8 {[%emt 0:00:00] Weighted Error Value: White=0.08 (flawless) /Black=0.78} 1-0